bitfinex/quotes_SOLUSD_20250823
["timestamp","ask_amount","ask_price","bid_price","bid_amount"]
[1755935078111,9.43647907,206.13,206.12,26.71]
[1755935078578,47.67647907,206.13,206.12,26.71]
[1755935078988,71.82429838,206.13,206.12,0.03]
[1755935079598,71.17429838,206.13,206.12,0.03]
[1755935081114,72.10862152,206.13,206.12,0.03]
[1755935081615,72.10862152,206.13,206.09,0.03]
[1755935081813,33.06214245,206.1,206.09,0.03]
[1755935081989,71.30214245,206.1,206.09,0.03]
[1755935082414,71.95214245,206.1,206.09,0.03]
[1755935085413,84.18743945,206.1,206.09,0.03]
[1755935085917,71.95214245,206.1,206.09,0.03]
[1755935087109,92.87991715,206.09,206.08,12.23529733]
[1755935087427,121.96436775,206.08,206.07,0.03]
[1755935087607,160.85436775,206.08,206.07,0.03]
[1755935088318,162.79710575,206.08,206.07,0.03]
[1755935088816,58.77781931,206.01,206.0,0.0579]
[1755935089017,22.87559401,205.97,205.96,0.03]
[1755935089217,71.30214245,205.97,205.96,0.03]
[1755935089405,73.24582345,205.97,205.96,0.03]
[1755935089609,73.89582345,205.97,205.96,0.03]
[1755935090311,22.87559401,205.92,205.91,0.1]
[1755935090528,71.30214245,205.92,205.91,0.1]
[1755935090698,71.95214245,205.92,205.91,0.1]
[1755935090903,73.89610745,205.92,205.91,0.1]
[1755935092022,35.00610745,205.92,205.91,0.1]
[1755935092342,71.30214245,205.92,205.91,0.1]
[1755935092899,33.06214245,205.92,205.91,0.1]
[1755935093098,47.52,205.92,205.91,0.78]
[1755935093718,9.28,205.92,205.91,0.78]
[1755935093917,47.54,205.92,205.91,0.78]
[1755935096423,47.54,205.92,205.91,26.78]
[1755935096638,9.28,205.92,205.91,0.78]
[1755935096940,9.28,205.92,205.91,10.6822253]
[1755935098615,38.26,205.95,205.91,10.6822253]
[1755935098814,38.26,205.95,205.92,0.7]
[1755935099019,47.54,205.95,205.92,0.7]
[1755935099236,38.26,205.95,205.94,26.0]
[1755935099422,38.26,205.95,205.94,26.7]
[1755935100446,9.28,205.94,205.91,0.1]
[1755935100624,19.1822253,205.92,205.91,0.1]
[1755935101719,9.28,205.92,205.91,0.1]
[1755935101920,9.38062811,205.94,205.93,26.0]
[1755935102128,47.64062811,205.94,205.93,26.0]
[1755935102335,47.64062811,205.94,205.93,26.7]
[1755935102530,9.38062811,205.94,205.93,0.7]
[1755935102731,0.0908742,205.95,205.93,10.6022253]
[1755935102932,0.0908742,205.95,205.94,10.6022253]
[1755935103327,0.0908742,205.95,205.94,26.7]
[1755935103526,9.3708742,205.95,205.94,26.7]
[1755935103942,47.6308742,205.95,205.93,0.03]
[1755935104748,47.6308742,205.95,205.93,26.03]
[1755935104953,9.3708742,205.95,205.94,26.7]
[1755935105253,9.3708742,205.95,205.94,26.0]
[1755935106148,9.3708742,205.95,205.93,0.03]
[1755935106457,9.3708742,205.95,205.94,26.0]
[1755935107046,9.3708742,205.95,205.93,0.03]
[1755935107047,13.87991715,205.94,205.93,0.03]
[1755935107345,62.73214245,205.94,205.93,0.03]
[1755935107940,24.47214245,205.94,205.93,0.03]
[1755935108145,62.77214245,205.94,205.93,0.03]
[1755935110359,9.9022253,205.94,205.93,0.03]
[1755935110564,38.3,205.94,205.93,26.73]
[1755935110860,38.3,205.94,205.93,26.03]
[1755935111028,48.2022253,205.94,205.93,0.03]
[1755935111232,62.48781931,205.94,205.93,0.03]
[1755935111437,62.77214245,205.94,205.93,0.03]
[1755935111935,141.77214245,205.94,205.93,0.03]
[1755935113145,141.08214245,205.94,205.93,0.03]
[1755935113948,117.3,205.94,205.93,0.03]
[1755935114150,88.9022253,205.94,205.93,0.03]
[1755935114357,127.1822253,205.94,205.93,0.03]
[1755935114752,117.28,205.94,205.93,0.03]
[1755935115352,127.1822253,205.94,205.93,0.03]
[1755935116650,141.75214245,205.94,205.93,0.03]
[1755935121274,62.75214245,205.94,205.93,0.03]
[1755935121956,62.84981166,205.94,205.93,0.03]
[1755935122274,24.56981166,205.94,205.93,0.03]
[1755935122447,62.82981166,205.94,205.93,0.03]
[1755935124565,13.97758636,205.94,205.93,0.03]
[1755935124890,51.97326322,205.94,205.93,0.03]
[1755935125575,61.87548852,205.94,205.93,0.03]
[1755935126278,51.97326322,205.94,205.93,0.03]
[1755935126480,13.69326322,205.94,205.93,0.03]
[1755935126659,38.37766921,205.94,205.93,0.03]
[1755935129464,48.27989451,205.94,205.93,0.03]
[1755935130387,62.53548852,205.94,205.93,0.03]
[1755935131253,62.81981166,205.94,205.93,0.03]
[1755935131579,62.81981166,205.94,205.88,0.1]
[1755935131580,0.28432314,205.9,205.88,0.1]
[1755935131754,72.00214245,205.89,205.88,0.1]
[1755935132579,72.04214245,205.89,205.88,0.1]
[1755935136863,72.04214245,205.89,205.83,0.03]
[1755935137059,33.06214245,205.84,205.83,0.03]
[1755935137297,71.38214245,205.84,205.83,0.03]
[1755935137659,72.04214245,205.84,205.83,0.03]
[1755935138178,71.38214245,205.84,205.83,0.03]
[1755935138690,72.04214245,205.84,205.83,0.03]
[1755935139971,62.13991715,205.84,205.83,0.03]
[1755935140168,71.38214245,205.84,205.83,0.03]
[1755935140371,71.09781931,205.84,205.83,0.7]
[1755935140577,9.28,205.84,205.83,0.7]
[1755935140776,47.58,205.84,205.83,0.7]
[1755935141371,9.28,205.84,205.83,0.7]
[1755935141593,47.58,205.84,205.83,0.7]
[1755935141990,47.68215928,205.84,205.83,0.7]
[1755935143378,71.17997859,205.84,205.83,0.03]
[1755935146485,22.97775329,205.84,205.83,0.7]
[1755935146670,47.66215928,205.84,205.83,0.7]
[1755935147403,47.66215928,205.84,205.83,0.03]
[1755935147588,71.81997859,205.84,205.83,0.03]
[1755935148195,72.10430173,205.84,205.83,0.03]
[1755935150288,13.87991715,205.83,205.72,0.1]
[1755935150491,13.59559401,205.73,205.72,0.1]
[1755935150696,51.87559401,205.73,205.72,0.1]
[1755935151278,38.3,205.73,205.72,0.77]
[1755935151892,38.3,205.73,205.72,0.1]
[1755935152093,38.3,205.73,205.72,0.77]
[1755935152685,38.3,205.73,205.72,26.77]
[1755935153080,38.3,205.73,205.72,0.77]
[1755935153485,51.89559401,205.73,205.72,0.1]
[1755935153873,52.17991715,205.73,205.72,0.1]
[1755935154284,13.87991715,205.73,205.72,0.1]
[1755935154484,52.17991715,205.73,205.72,0.1]
[1755935155099,9.28,205.74,205.72,0.77]
[1755935155300,38.3,205.73,205.72,0.1]
[1755935155901,38.3,205.73,205.72,0.77]
[1755935156281,38.3,205.73,205.72,0.1]
[1755935156776,38.3,205.73,205.72,0.77]
[1755935157998,38.3,205.73,205.72,0.1]
[1755935158199,9.28,205.74,205.72,0.1]
[1755935158380,38.3,205.73,205.72,0.1]
[1755935160111,9.28,205.74,205.72,0.1]
[1755935160408,38.97,205.73,205.72,0.1]
[1755935160702,38.3,205.73,205.72,0.1]
[1755935161887,38.40164145,205.73,205.72,0.1]
[1755935163006,141.8537839,205.73,205.72,0.1]
[1755935163413,131.9515586,205.73,205.72,0.1]
[1755935163588,103.5537839,205.73,205.72,0.1]
[1755935163782,141.8537839,205.73,205.72,0.1]
[1755935164210,141.1837839,205.73,205.72,0.1]
[1755935164409,141.8537839,205.73,205.72,0.1]
[1755935165188,141.1837839,205.73,205.72,0.1]
[1755935165412,131.2815586,205.73,205.72,0.1]
[1755935166719,0.10164145,205.73,205.72,0.82]
[1755935167093,38.40164145,205.73,205.72,10.7222253]
[1755935167298,38.40164145,205.73,205.72,0.82]
[1755935167787,38.40164145,205.73,205.72,0.1]
[1755935167990,62.8537839,205.73,205.72,0.1]
[1755935168323,52.2815586,205.73,205.72,0.1]
[1755935168495,52.9515586,205.73,205.72,0.1]
[1755935169293,62.8537839,205.73,205.72,0.1]
[1755935172016,24.5537839,205.73,205.72,0.1]
[1755935172226,52.2815586,205.73,205.72,0.1]
[1755935172611,62.1837839,205.73,205.72,0.1]
[1755935172813,23.8837839,205.73,205.72,0.1]
[1755935173022,62.8537839,205.73,205.72,0.1]
[1755935173334,38.40164145,205.73,205.72,0.1]
[1755935177626,62.8537839,205.73,205.72,0.1]
[1755935178325,52.9515586,205.73,205.72,0.1]
[1755935178536,62.8537839,205.73,205.72,0.1]
[1755935179916,72.7560089,205.73,205.72,0.1]
[1755935180535,62.8537836,205.73,205.72,0.1]
[1755935180709,62.8537839,205.73,205.72,0.1]
[1755935181911,62.95196974,205.73,205.72,0.1]
[1755935182413,62.85032829,205.73,205.72,0.1]
[1755935185822,52.94810299,205.73,205.72,0.1]
[1755935186037,62.85032829,205.73,205.72,0.1]
[1755935187347,62.05816672,205.73,205.72,0.1]
[1755935187519,62.76816672,205.73,205.72,0.1]
[1755935187715,62.91032829,205.73,205.72,0.1]
[1755935189138,62.20032829,205.73,205.72,0.1]
[1755935189327,62.91032829,205.73,205.72,0.1]
[1755935189526,62.89032829,205.73,205.72,0.1]
[1755935189744,62.91032829,205.73,205.72,0.1]
[1755935191342,80.04129197,205.73,205.72,0.1]
[1755935191720,70.13906667,205.73,205.72,0.1]
[1755935191917,80.04129197,205.73,205.72,0.1]
[1755935194621,80.02129197,205.73,205.72,0.1]
[1755935196161,9.28,205.62,205.61,0.68]
[1755935196363,47.6,205.62,205.61,0.68]
[1755935200247,9.28,205.62,205.61,0.68]
[1755935200474,47.6,205.62,205.61,0.68]
[1755935201478,61.47991715,205.62,205.61,0.68]
[1755935201975,61.29149226,205.62,205.61,0.68]
[1755935203368,9.37589825,205.62,205.61,0.68]
[1755935203965,47.69589825,205.62,205.61,0.68]
[1755935204369,9.37589825,205.62,205.61,0.71]
[1755935204568,47.69589825,205.62,205.61,0.71]
[1755935205255,47.69589825,205.62,205.61,0.03]
[1755935205475,9.37589825,205.62,205.61,0.71]
[1755935205656,47.69589825,205.62,205.61,0.71]
[1755935206063,47.69589825,205.62,205.61,0.03]
[1755935206983,9.37589825,205.62,205.61,0.03]
[1755935207186,62.2858154,205.62,205.61,0.03]
[1755935207381,80.0701722,205.62,205.61,0.03]
[1755935212792,82.60667011,205.62,205.61,0.03]
[1755935214664,108.60667011,205.62,205.58,0.03]
[1755935214874,33.06214245,205.59,205.58,0.03]
[1755935215078,71.38214245,205.59,205.58,0.03]
[1755935215476,81.99436745,205.59,205.58,0.03]
[1755935216284,33.06214215,205.59,205.58,0.03]
[1755935216477,33.77214245,205.59,205.58,0.03]
[1755935216795,72.09214245,205.59,205.58,0.03]
[1755935218764,13.87991715,205.58,205.48,26.72]
[1755935218969,19.1822253,205.51,205.48,26.0]
[1755935219169,38.32,205.5,205.48,26.72]
[1755935219391,38.32,205.5,205.48,0.72]
[1755935219583,9.28,205.47,205.42,9.9022253]
[1755935219786,9.28,205.47,205.46,0.72]
[1755935219982,47.6,205.47,205.46,0.72]
[1755935220182,47.6,205.47,205.36,2.54351727]
[1755935220385,9.9022253,205.46,205.44,0.72]
[1755935220575,47.6,205.47,205.37,4.78834492]
[1755935220576,57.5022253,205.45,205.41,0.72]
[1755935220778,38.32,205.44,205.41,0.72]
[1755935220998,38.32,205.44,205.42,0.72]
[1755935221181,9.28,205.43,205.42,0.72]
[1755935221383,9.28,205.43,205.33,3.26395922]
[1755935221696,38.32,205.42,205.38,9.9022253]
[1755935222090,38.40786852,205.42,205.41,26.0]
[1755935222398,38.40786852,205.42,205.41,0.72]
[1755935222780,9.28,205.41,205.4,26.0]
[1755935222982,9.28,205.41,205.4,26.72]
[1755935223185,9.28,205.41,205.4,0.72]
[1755935223396,0.08786852,205.42,205.4,10.6222253]
[1755935223589,0.10076992,205.43,205.41,10.6222253]
[1755935223899,37.36,205.42,205.38,26.0]
[1755935224610,0.10076992,205.43,205.38,26.0]
[1755935224903,38.42076992,205.43,205.38,26.0]
[1755935225197,38.42076992,205.43,205.42,9.9022253]
[1755935225604,38.42076992,205.43,205.36,3.69764752]
[1755935225784,39.14076992,205.43,205.33,2.54395922]
[1755935225981,48.42076992,205.43,205.39,9.9022253]
[1755935226405,48.42076992,205.43,205.32,2.54309668]
[1755935226406,39.06,205.42,205.38,9.9022253]
[1755935226585,9.28,205.41,205.37,9.9022253]
[1755935226910,38.34,205.42,205.35,26.0]
[1755935227211,9.28,205.41,205.37,9.9022253]
[1755935227504,10.0,205.41,205.37,35.9022253]
[1755935227702,9.28,205.41,205.37,35.9022253]
[1755935228382,0.72,205.4,205.32,26.0]
[1755935228577,47.6,205.39,205.35,9.9022253]
[1755935228772,47.6,205.39,205.37,9.9022253]
[1755935229002,38.32,205.39,205.38,9.9022253]
[1755935229200,38.34,205.39,205.33,26.72]
[1755935229406,38.34,205.39,205.38,9.9022253]
[1755935229914,9.38076992,205.43,205.38,9.9022253]
[1755935230208,9.38076992,205.43,205.41,9.9022253]
[1755935230209,0.10076992,205.43,205.41,9.9022253]
[1755935230414,0.10076992,205.43,205.42,9.9022253]
[1755935230577,0.10076992,205.43,205.4,26.0]
[1755935230779,38.34,205.42,205.4,26.0]
[1755935230977,38.34,205.42,205.41,9.9022253]
[1755935231318,38.34,205.42,205.35,0.72]
[1755935231495,38.34,205.42,205.41,9.9022253]
[1755935232078,38.34,205.42,205.41,35.9022253]
[1755935232378,38.34,205.42,205.3,5.139178]
[1755935232379,13.59559401,205.41,205.3,4.85485486]
[1755935232596,13.59559401,205.41,205.29,216.64321847]
[1755935232597,10.0,205.4,205.29,2.54321847]
[1755935232807,10.0,205.4,205.35,9.9022253]
[1755935232808,0.72,205.39,205.35,9.9022253]
[1755935232984,38.36,205.38,205.36,9.9022253]
[1755935233403,9.28,205.36,205.27,0.03]
[1755935233580,9.28,205.34,205.32,9.9022253]
[1755935233787,9.28,205.34,205.27,0.03]
[1755935233788,9.28,205.32,205.29,9.9022253]
[1755935234313,0.72,205.31,205.29,9.9022253]
[1755935234720,0.72,205.31,205.3,9.9022253]
[1755935235020,39.4,205.31,205.28,9.9022253]
[1755935235233,39.4,205.31,205.27,0.03]
[1755935235234,9.19842611,205.28,205.27,0.03]
[1755935235588,9.91842611,205.28,205.27,0.03]
[1755935236200,13.59559401,205.27,205.25,0.60290191]
[1755935236410,9.19842611,205.19,205.16,9.9022253]
[1755935236615,13.73775558,205.25,205.16,9.9022253]
[1755935236616,9.19842611,205.21,205.18,9.9022253]
[1755935236803,38.74,205.2,205.16,0.64]
[1755935237008,38.74,205.2,205.17,0.64]
[1755935237208,38.74,205.2,205.14,0.64]
[1755935237404,38.74,205.2,205.13,26.0]
[1755935237617,9.19842611,205.18,205.12,0.64]
[1755935238130,9.19842611,205.18,205.16,9.9022253]
[1755935238330,38.74,205.2,205.17,9.9022253]
[1755935238632,9.19842611,205.18,205.14,0.64]
[1755935238827,9.19842611,205.18,205.17,9.9022253]
[1755935239131,14.31559401,205.24,205.17,9.9022253]
[1755935239132,9.19842611,205.24,205.2,26.0]
[1755935239347,38.78,205.23,205.2,26.0]
[1755935239511,38.78,205.22,205.2,35.9022253]
[1755935239711,9.19842611,205.24,205.2,35.9022253]
[1755935239932,10.6222253,205.27,205.2,35.9022253]
[1755935239933,38.78,205.23,205.2,35.9022253]
[1755935240152,9.19842611,205.26,205.21,9.9022253]
[1755935240426,38.76,205.24,205.23,26.0]
[1755935240729,9.19842611,205.24,205.23,26.0]
[1755935240904,9.91842611,205.27,205.22,9.9022253]
[1755935241106,38.78,205.24,205.23,9.9022253]
[1755935241309,38.78,205.26,205.23,10.5422253]
[1755935241640,9.91842611,205.3,205.25,35.9022253]
[1755935241936,9.19842611,205.32,205.3,26.0]
[1755935242247,0.08813881,205.31,205.26,26.0]
[1755935242724,0.72,205.3,205.26,26.0]
[1755935242929,0.08813881,205.31,205.23,0.64]
[1755935243437,0.08813881,205.31,205.3,26.0]
[1755935244543,0.80813881,205.31,205.26,15.8218605]
[1755935244711,9.19842611,205.29,205.2,0.64]
[1755935244913,16.62999931,205.31,205.22,15.8218605]
[1755935244914,9.19842611,205.27,205.22,15.8218605]
[1755935245117,0.72,205.26,205.21,15.8218605]
[1755935245328,0.72,205.26,205.18,0.64]
[1755935245533,0.72,205.26,205.25,26.0]
[1755935245940,9.19842611,205.27,205.26,26.0]
[1755935246116,40.04,205.28,205.26,26.0]
[1755935246433,9.19842611,205.27,205.26,26.0]
[1755935247135,39.32,205.28,205.24,41.8218605]
[1755935247317,39.32,205.28,205.27,26.0]
[1755935247513,40.03,205.28,205.26,26.0]
[1755935247921,40.03,205.28,205.27,26.0]
[1755935248551,40.03,205.28,205.26,15.8218605]
[1755935248552,39.32,205.28,205.26,15.8218605]
[1755935249034,39.40813881,205.31,205.3,26.0]
[1755935249232,39.40813881,205.31,205.3,15.8218605]
[1755935250418,0.08813881,205.31,205.3,15.8218605]
[1755935250821,0.08813881,205.31,205.3,16.4618605]
[1755935251223,0.08813881,205.31,205.3,0.64]
[1755935251447,0.08813881,205.31,205.3,16.74618364]
[1755935251632,0.08813881,205.31,205.3,16.4618605]
[1755935251818,0.08813881,205.31,205.3,15.8218605]
[1755935252239,0.08813881,205.31,205.3,16.4618605]
[1755935253842,0.08813881,205.31,205.3,15.8218605]
[1755935254050,0.08813881,205.31,205.3,16.4618605]
[1755935255246,0.14813881,205.31,205.3,16.4618605]
[1755935256440,0.14813881,205.31,205.3,0.64]
[1755935256838,0.14813881,205.31,205.3,16.4618605]
[1755935257845,0.14813881,205.31,205.28,0.64]
[1755935258052,0.14813881,205.31,205.3,16.4618605]
[1755935261156,0.08904186,205.32,205.3,16.4618605]
[1755935261357,0.08904186,205.32,205.31,42.4618605]
[1755935262040,0.19033998,205.32,205.31,42.4618605]
[1755935262557,0.10129812,205.32,205.31,36.62601326]
[1755935262865,0.10332712,205.35,205.31,36.9103364]
[1755935263064,0.10393622,205.39,205.34,35.98601326]
[1755935263231,0.10393622,205.39,205.36,9.98601326]
[1755935263868,0.10393622,205.39,205.36,10.62601326]
[1755935264076,0.10393622,205.39,205.37,36.62601326]
[1755935264380,0.10393622,205.39,205.38,9.98601326]
[1755935264542,0.10393622,205.39,205.31,0.64]
[1755935264745,0.10393622,205.39,205.35,26.0]
[1755935265066,0.10393622,205.39,205.38,9.98601326]
[1755935267195,0.496137,205.41,205.4,26.0]
[1755935267546,0.496137,205.41,205.4,9.98601326]
[1755935268049,9.19842611,205.43,205.4,9.98601326]
[1755935268358,9.19842611,205.43,205.41,9.98601326]
[1755935268863,9.98601326,205.48,205.35,26.0]
[1755935268864,9.19842611,205.41,205.39,9.98601326]
[1755935269177,0.71,205.4,205.39,9.98601326]
[1755935269350,0.71,205.4,205.37,9.98601326]
[1755935269548,0.71,205.4,205.38,35.98601326]
[1755935269855,9.19842611,205.41,205.4,26.0]
[1755935270375,9.90842611,205.41,205.38,9.98601326]
[1755935270752,0.71,205.4,205.38,9.98601326]
[1755935270954,0.71,205.39,205.38,9.98601326]
[1755935271149,0.71,205.39,205.37,35.98601326]
[1755935271150,9.90842611,205.39,205.37,35.98601326]
[1755935271384,9.19842611,205.39,205.38,9.98601326]
[1755935271587,9.19842611,205.39,205.37,26.0]
[1755935271793,9.19842611,205.39,205.27,27.76532088]
[1755935271794,9.19842611,205.35,205.3,4.87481636]
[1755935271975,0.71,205.34,205.33,35.98601326]
[1755935272782,0.71,205.34,205.33,26.0]
[1755935272986,0.71,205.34,205.33,35.98601326]
[1755935274984,9.19842611,205.35,205.33,35.98601326]
[1755935275199,9.90842611,205.37,205.34,9.98601326]
[1755935275490,0.71,205.36,205.35,9.98601326]
[1755935276291,0.71,205.36,205.35,35.98601326]
[1755935276897,9.19842611,205.37,205.35,35.98601326]
[1755935277106,9.19842611,205.39,205.38,26.0]
[1755935277467,9.90842611,205.39,205.29,0.03]
[1755935277681,9.19842611,205.37,205.36,26.0]
[1755935277972,9.90842611,205.37,205.36,26.0]
[1755935278175,9.90842611,205.37,205.3,26.0]
[1755935278490,9.19842611,205.37,205.36,26.0]
[1755935279292,9.90842611,205.37,205.36,26.0]
[1755935279800,9.90842611,205.37,205.35,9.98601326]
[1755935280096,0.71,205.36,205.35,9.98601326]
[1755935280466,9.19842611,205.37,205.35,9.98601326]
[1755935280697,9.19842611,205.37,205.36,9.98601326]
[1755935281196,9.90842611,205.37,205.36,9.98601326]
[1755935281403,9.19842611,205.37,205.36,9.98601326]
[1755935281602,9.19842611,205.37,205.34,26.0]
[1755935281790,9.19842611,205.37,205.36,9.98601326]
[1755935281995,9.29355382,205.37,205.36,9.98601326]
[1755935282812,0.09512771,205.37,205.36,10.66601326]
[1755935285994,0.09512771,205.37,205.36,0.68]
[1755935286182,0.09512771,205.37,205.36,35.98601326]
[1755935288095,0.80512771,205.37,205.36,9.98601326]
[1755935288402,10.00355382,205.37,205.36,9.98601326]
[1755935290284,10.00355382,205.37,205.36,10.01601326]
[1755935291878,9.29355382,205.37,205.36,10.01601326]
[1755935292077,0.09512771,205.37,205.36,10.69601326]
[1755935293178,0.09512771,205.37,205.36,10.01601326]
[1755935293411,0.80512771,205.37,205.36,10.01601326]
[1755935294825,0.80512771,205.37,205.36,0.03]
[1755935295117,0.80512771,205.37,205.36,10.01601326]
[1755935295514,10.00355382,205.37,205.36,0.03]
[1755935295696,10.00355382,205.37,205.36,10.01601326]
[1755935296624,10.00355382,205.37,205.36,0.03]
[1755935296944,10.00355382,205.37,205.36,10.01601326]
[1755935298729,0.09512771,205.37,205.36,10.01601326]
[1755935302125,0.19925508,205.37,205.36,10.01601326]
[1755935302511,0.10412737,205.37,205.36,10.01601326]
[1755935303117,0.10412737,205.37,205.36,10.69601326]
[1755935303312,0.10412737,205.37,205.36,13.24831006]
[1755935303824,0.10412737,205.37,205.36,13.92872451]
[1755935304019,0.10412737,205.37,205.36,13.24872542]
[1755935304835,0.10412737,205.37,205.36,13.92872542]
[1755935305045,0.81412737,205.37,205.36,3.26271216]
[1755935305719,0.81412737,205.37,205.36,13.24872542]
[1755935305918,0.81412737,205.37,205.36,29.26271216]
[1755935306131,0.81412737,205.37,205.36,39.24872542]
[1755935306333,0.81412737,205.37,205.36,13.24959623]
[1755935306537,0.10412737,205.37,205.36,13.24959623]
[1755935307233,0.10412737,205.37,205.36,13.93959623]
[1755935308227,0.10412737,205.37,205.36,3.26358297]
[1755935308423,0.10412737,205.37,205.36,13.24959623]
[1755935309144,9.96255348,205.37,205.36,13.24959623]
[1755935309737,9.96255348,205.37,205.36,3.26358297]
[1755935310047,9.96255348,205.37,205.36,13.24959623]
[1755935311655,9.30255348,205.37,205.36,13.24959623]
[1755935312021,9.30255348,205.37,205.36,3.26358297]
[1755935312446,9.30255348,205.37,205.36,13.24959623]
[1755935312660,9.30255348,205.37,205.36,13.25120614]
[1755935313033,0.10412737,205.37,205.36,13.25122698]
[1755935313341,0.10412737,205.37,205.36,3.26521372]
[1755935313540,0.10412737,205.37,205.36,13.25122698]
[1755935314070,9.30255348,205.37,205.36,3.26521372]
[1755935314230,9.96255348,205.37,205.36,3.26521372]
[1755935314436,9.96255348,205.37,205.36,13.25122698]
[1755935316330,9.96255348,205.37,205.36,3.26521372]
[1755935316554,9.96255348,205.37,205.36,13.25122698]
[1755935316739,9.96255348,205.37,205.36,3.26521372]
[1755935316928,9.96255348,205.37,205.36,13.25122698]
[1755935317127,9.96255348,205.37,205.36,39.25122698]
[1755935317737,23.55814749,205.37,205.36,3.26521372]
[1755935317931,23.84247063,205.37,205.36,2.54521372]
[1755935318155,33.82848389,205.37,205.36,2.54521372]
[1755935319452,22.79402012,205.34,205.33,0.03]
[1755935319631,33.06435652,205.34,205.33,0.03]
[1755935319830,33.67435652,205.34,205.33,0.03]
[1755935320852,23.68834326,205.34,205.33,0.03]
[1755935321764,33.67435652,205.34,205.33,0.03]
[1755935322146,23.79019275,205.34,205.33,0.03]
[1755935322350,33.77620601,205.34,205.33,0.03]
[1755935323739,23.79019275,205.34,205.33,0.03]
[1755935324055,33.77620601,205.34,205.33,0.03]
[1755935324752,23.79019275,205.34,205.33,0.03]
[1755935324937,9.3002756,205.34,205.33,0.03]
[1755935325142,48.0602756,205.34,205.33,0.03]
[1755935327328,48.0602756,205.34,205.33,10.70601326]
[1755935329234,9.3002756,205.34,205.33,10.70601326]
[1755935329452,0.10184949,205.34,205.33,10.70601326]
[1755935330934,0.10159297,205.36,205.35,26.0]
[1755935331130,0.09919571,205.38,205.36,0.28432314]
[1755935331333,0.09919571,205.38,205.37,10.67601326]
[1755935332561,0.09919571,205.38,205.37,13.85094133]
[1755935333738,0.09919571,205.38,205.37,3.86492807]
[1755935333937,0.09919571,205.38,205.37,13.85094133]
[1755935334350,0.09919571,205.38,205.37,19.6694293]
[1755935336967,0.10656463,205.4,205.39,0.28432314]
[1755935337167,0.10656463,205.4,205.39,19.95375244]
[1755935337373,0.10656463,205.4,205.39,5.81239507]
[1755935337544,0.10656463,205.4,205.39,21.6168963]
[1755935337741,0.10656463,205.4,205.39,19.6694293]
[1755935338839,0.10085127,205.42,205.4,13.59559401]
[1755935339040,0.10085127,205.42,205.41,18.9794293]
[1755935339245,0.10085127,205.42,205.41,19.96375244]
[1755935339449,0.10085127,205.42,205.41,21.91103044]
[1755935340266,0.10085127,205.42,205.41,19.96375244]
[1755935340437,0.10085127,205.42,205.41,3.86967468]
[1755935340642,0.10085127,205.42,205.41,19.67417591]
[1755935341973,0.16085127,205.42,205.41,19.67417591]
[1755935342160,0.26444759,205.42,205.41,19.67417591]
[1755935342489,0.16359632,205.42,205.41,19.67417591]
[1755935345380,0.16359632,205.42,205.41,19.95849905]
[1755935346370,0.15189635,205.43,205.41,19.95849905]
[1755935346579,0.10568179,205.45,205.44,39.87991715]
[1755935346778,0.14837886,205.46,205.45,13.87991715]
[1755935346981,9.30505011,205.5,205.47,26.0]
[1755935347195,9.30505011,205.5,205.47,44.97417591]
[1755935347495,9.30505011,205.5,205.47,45.67417591]
[1755935347496,0.106624,205.5,205.47,45.67417591]
[1755935347653,0.106624,205.5,205.48,19.67417591]
[1755935347654,9.30505011,205.5,205.48,19.67417591]
[1755935348286,9.30505011,205.5,205.48,23.66895969]
[1755935348677,9.30505011,205.5,205.48,29.16042148]
[1755935348855,9.30505011,205.5,205.48,44.96492271]
[1755935349175,9.30505011,205.5,205.48,44.96562184]
[1755935349786,9.30505011,205.5,205.48,3.16112061]
[1755935349787,0.71321165,205.49,205.48,3.16112061]